Workbook

Sheet Introduction
B2: Teaching Tool 4B - Balance Sheet and Ratios
E3: 2018-02-01
B4: Personal Finance: Another Perspective
B6: Purpose:
B7: The purpose of this spreadsheet is to give an Excel template for calculating
B8: your balance sheets and financial ratios. These worksheets are meant to help
B9: you understand your liquidity, debt and savings and you work to develop and live on a
B10: budget. They are not meant to replace good management software such as Quicken,
B11: Mint, or YNAB, but they are helpful as you are working to be better stewards.
B13: Balance Sheets:
B14: The balance sheets are divided into assets and liabilities, with the different types of
B15: assets and liabilities separated out. Fill out each of the green cells, but do not put
B16: any data into the blue cells--they are calculations. Set the month, day and year in row 8
B17: balance sheet. The Differences sheet tells you what has changed in your balance sheets
B18: between the two dates which is helpful to see how you are doing.
B20: Disclosure:
B21: The purpose of this spreadsheet and this class is to help you get your financial house in
B22: order and to help you on your road to financial self-reliance. If there are mistakes in this
B23: spreadsheet, please bring them to our attention and we will correct them in upcoming
B24: versions. The teacher, and BYU, specifically disclaim any liability, or responsibility for
B25: claims, loss, or risk incurred, directly or indirectly, from using this material.

Sheet Balance Sheet 1
D2: ="Balance Sheet (LT4B) for "&Q3 -> Balance Sheet (LT4B) for Steve and Mary Jo | Q2: Input Your Name Below | Y2: Financial Ratio Frequency
D3: =F7&" "&H7&", "&L7 -> January 31, 2019 | P3: Your Name: | Q3: Steve and Mary Jo | Y3: Annual
Y4: Monthly | AD4: January | AE4: 1 | AF4: 2016
D5: Directions: Fill in the green cells with your data. Be careful not to modify the blue cells. Key inputs | AD5: February | AE5: 2 | AF5: 2017
D6: for ratios comes from your budget and income statements for the month. | K6: Frequency | L6: Monthly | O6: ` | AD6: March | AE6: 3 | AF6: 2018
D7: Month: | F7: January | G7: Day | H7: 31 | K7: Year: | L7: 2019 | AD7: April | AE7: 4 | AF7: 2019
AD8: May | AE8: 5 | AF8: 2020
D9: Assets | I9: Liabilities or Debts | AD9: June | AE9: 6
AD10: July | AE10: 7
D11: Current or Monetary Assets | I11: Current Liabilities | AD11: August | AE11: 8
E12: Cash, Checking, Saving | G12: 5000 | J12: Unpaid Other Balances | L12: 1150 | AD12: September | AE12: 9
E13: Other Monetary Assets | J13: Unpaid Credit Cards | AD13: October | AE13: 10
E14: A. | F14: Total Monetary Assets | G14: =SUM(G12:G13) -> 5000 | J14: Other Credit Cards | AD14: November | AE14: 11
D15: Investments & Retirement Plans | J15: I. | K15: Total current liabilities | L15: =SUM(L12:L14) -> 1150 | AD15: December | AE15: 12
E16: B. Mutual Funds, securities | I16: Housing Loans | AE16: 13
E17: C. Qual./Ind. Retirement Plans | J17: Mortgage Outstanding | L17: 100000 | AE17: 14
E18: Total Investments (B+C) | G18: =SUM(G16:G17) -> 0 | J18: Other Housing Debt | AE18: 15
D19: Housing | J19: J. | K19: Total Housing | L19: =SUM(L17:L18) -> 100000 | AE19: 16
E20: Primary Residence | G20: 150000 | I20: Vehicle Loans | AE20: 17
E21: Other Housing | J21: Automobiles | L21: 20000 | AE21: 18
E22: D. | F22: Total Housing (at market value) | G22: =SUM(G20:G21) -> 150000 | J22: Other vehicle loans | AE22: 19
D23: Vehicles | J23: K. | K23: Total Automobile Loans | L23: =SUM(L21:L22) -> 20000 | AE23: 20
E24: Automobiles | G24: 20000 | I24: Other Loans | AE24: 21
E25: Other vehicles, ATVs, RVs, etc. | J25: Students Loans | L25: 10000 | AE25: 22
E26: E. | F26: Total Automobiles | G26: =SUM(G24:G25) -> 20000 | J26: Other borrowings | AE26: 23
D27: Personal Property & Other Assets | J27: L. | K27: Other Loans | L27: =SUM(L25:L26) -> 10000 | AE27: 24
E28: Personal Property | G28: 10000 | I28: M. | J28: Total Debt/Liabilities | L28: =L27+L23+L19+L15 -> 131150 | AE28: 25
E29: Other assets | AE29: 26
E30: Other miscellaneous assets | I30: Net Worth | AE30: 27
E31: F. | F31: Personal Property & Other | G31: =SUM(G28:G30) -> 10000 | I31: N. | J31: Total Assets | L31: =G33 -> 185000 | AE31: 28
I32: O. | J32: Less: Total Debt | L32: =L28 -> 131150 | AE32: 29
D33: H. | E33: Total Assets (A+B+C+D+E+F) | G33: =G14+G18+G22+G26+G31 -> 185000 | I33: P. | J33: Equals: Net Worth | L33: =L31-L32 -> 53850 | AE33: 30
AE34: 31
F36: =L6&" Financial Ratios for "&Q3 -> Monthly Financial Ratios for Steve and Mary Jo
F37: ="As of "&F7&" "&H7&", "&L7 -> As of January 31, 2019
I38: 6 Key Ratios Differences
D39: Q. | E39: ="Savings - "&L6 -> Savings - Monthly | G39: 5000 | I39: 1. Current Ratio (%): | L39: =IF(OR(G14=0,L15=0),"No Data",TEXT(G14/L15,"0.00")) -> 4.35
F40: (How much did you save this period? - IS) | J40: (Mon. Assets (A)/Current Liabilities(I))
I41: 2. Month's Living Exp. Cov. Ratio (x): | L41: =IF(OR(G14=0,G42=0),"No Data",IF(L6="Annual",TEXT(G14/(G42/12),"0.00"),TEXT(G14/(G42),"0.00"))) -> 0.16
D42: R. | E42: ="Living Expenses - "&L6 -> Living Expenses - Monthly | G42: 31500 | J42: (Mone. Assets (A)/Living Exp. (Q))
F43: (What were your living expenses? - IS) | I43: 3. Debt Ratio (%): | L43: =IF(OR(L28=0,L31=0),"No Data",TEXT(L28/L31,"0.0%")) -> 70.9%
J44: (Total Liabilities (M)/Total Assets (N))
D45: S. | E45: ="Income less Taxes - "&L6 -> Income less Taxes - Monthly | G45: 42500 | I45: 4. Long-term Debt Coverage Ratio (x): | L45: =IF(OR(G48=0,G45=0),"No Data",TEXT(G45/G48,"0.00")) -> 2.61
F46: (What was your income less taxes? - IS) | J46: (Inc. after Taxes (S)/LT Debt Pmts (T))
J47: Debt Service Ratio (1/ LTDCR) | L47: =IF(L45="No Data","",TEXT(1/L45,"0.0%")) -> 38.3%
D48: T. | E48: ="Long-term debt payments - "&L6 -> Long-term debt payments - Monthly | G48: =1160+7410+7730 -> 16300 | I48: 5. Net Saving's Ratio (%): | L48: =(IF(OR(G39=0,G45=0),"No Data",TEXT(G39/G45,"0.0%"))) -> 11.8%
F49: (Sum of all LT debt payments? - IS) | J49: (Savings (Q)/Inc. after taxes (S))
I50: 6. Gross Savings Ratio (%) | L50: =(IF(OR(G39=0,G51=0),"No Data",TEXT(G39/G51,"0.0%"))) -> 10.0%
D51: U. | E51: ="Gross Income - "&L6 -> Gross Income - Monthly | G51: 50000 | J51: (Savings (Q)/Gross Income (U))
F52: (How much did you make this period? - IS) | I52: Note: Inputs Q, R, S, T, U are from your budget/LT4C
G53: ="- Page 1 of 3 -" -> - Page 1 of 3 -
D58: Note: While some of these items may be both current (I.e. less than 1 year) and long-term, I am generalizing
E59: when I put them together, but I will at least be close | O59: months to pay off.

Sheet Balance Sheet 2
D2: ='Balance Sheet 1'!D2:L2 -> Balance Sheet (LT4B) for Steve and Mary Jo
D3: =F7&" "&H7&", "&L7 -> February 19, 2019 | P3: Name: | Q3: ='Balance Sheet 1'!Q3 -> Steve and Mary Jo
AD4: January | AE4: 1 | AF4: 2016
D5: Directions: Fill in the green cells with your data. Be careful not to modify the blue cells. Key inputs | Q5: Frequency of Ratios | AD5: February | AE5: 2 | AF5: 2017
D6: for calculating your ratios comes from your budget and income statements for the month. | K6: Frequency: | L6: ='Balance Sheet 1'!L6 -> Monthly | AD6: March | AE6: 3 | AF6: 2018
D7: Month: | F7: February | G7: Day | H7: 19 | K7: Year: | L7: 2019 | AD7: April | AE7: 4 | AF7: 2019
AD8: May | AE8: 5 | AF8: 2020
D9: Assets | I9: Liabilities or Debts | AD9: June | AE9: 6
AD10: July | AE10: 7
D11: Current or Monetary Assets | I11: Current Liabilities | AD11: August | AE11: 8
E12: Cash, Checking, Saving | G12: 1500 | J12: Unpaid Other Balances | L12: 350 | AD12: September | AE12: 9
E13: Other Monetary Assets | J13: Unpaid Credit Cards | AD13: October | AE13: 10
E14: A. | F14: Total Monetary Assets | G14: =SUM(G12:G13) -> 1500 | J14: Other Credit Cards | AD14: November | AE14: 11
D15: Investments & Retirement Plans | J15: I. | K15: Total current liabilities | L15: =SUM(L12:L14) -> 350 | AD15: December | AE15: 12
E16: B. Mutual Funds, securities | I16: Housing Loans | AE16: 13
E17: C. Qual./Ind. Retirement Plans | J17: Mortgage Outstanding | AE17: 14
E18: Total Investments (B+C) | G18: =SUM(G16:G17) -> 0 | J18: Other Housing Debt | AE18: 15
D19: Housing | J19: J. | K19: Total Housing | L19: =SUM(L17:L18) -> 0 | AE19: 16
E20: Primary Residence | I20: Vehicle Loans | AE20: 17
E21: Other Housing | J21: Automobiles | L21: 2300 | AE21: 18
E22: D. | F22: Total Housing (at market value) | G22: =SUM(G20:G21) -> 0 | J22: Other vehicle loans | AE22: 19
D23: Vehicles | J23: K. | K23: Total Automobile Loans | L23: =SUM(L21:L22) -> 2300 | AE23: 20
E24: Automobiles | G24: 7500 | I24: Other Loans | AE24: 21
E25: Other vehicles, ATVs, RVs, etc. | J25: Students Loans | L25: 8000 | AE25: 22
E26: E. | F26: Total Automobiles | G26: =SUM(G24:G25) -> 7500 | J26: Other borrowings | AE26: 23
D27: Personal Property & Other Assets | J27: L. | K27: Other Loans | L27: =SUM(L25:L26) -> 8000 | AE27: 24
E28: Personal Property | I28: M. | J28: Total Debt/Liabilities | L28: =L27+L23+L19+L15 -> 10650 | AE28: 25
E29: Other assets | G29: 1000 | AE29: 26
E30: Other miscellaneous assets | I30: Net Worth | AE30: 27
E31: F. | F31: Personal Property & Other | G31: =SUM(G28:G30) -> 1000 | I31: N. | J31: Total Assets | L31: =G33 -> 10000 | AE31: 28
I32: O. | J32: Less: Total Debt | L32: =L28 -> 10650 | AE32: 29
D33: H. | E33: Total Assets (A+B+C+D+E+F) | G33: =G14+G18+G22+G26+G31 -> 10000 | I33: P. | J33: Equals: Net Worth | L33: =L31-L32 -> -650 | AE33: 30
AE34: 31
F36: =L6&" Financial Ratios for "&Q3 -> Monthly Financial Ratios for Steve and Mary Jo
F37: ="as of "&F7&" "&H7&", "&L7 -> as of February 19, 2019
I38: 6 Key Ratios Differences
D39: Q. | E39: ="Savings - "&L6 -> Savings - Monthly | G39: 20 | I39: 1. Current Ratio (%): | L39: =IF(OR(G14=0,L15=0),"No Data",TEXT(G14/L15,"0.00")) -> 4.29
F40: (How much did you save this period? - IS) | J40: (Mon. Assets (A)/Current Liabilities(I))
I41: 2. Month's Living Exp. Cov. Ratio (x): | L41: =IF(OR(G14=0,G42=0),"No Data",TEXT(G14/(G42/12),"0.00")) -> 40.00
D42: R. | E42: ="Living Expenses - "&L6 -> Living Expenses - Monthly | G42: 450 | J42: (Mon. Assets (A)/Monthly Living Exp. (Q))
F43: (What were your living expenses? - IS) | I43: 3. Debt Ratio (%): | L43: =IF(OR(L28=0,L31=0),"No Data",TEXT(L28/L31,"0.0%")) -> 106.5%
J44: (Total Liabilities (M)/Total Assets (N))
D45: S. | E45: ="Income less Taxes - "&L6 -> Income less Taxes - Monthly | G45: 350 | I45: 4. Long-term Debt Coverage Ratio (x): | L45: =IF(OR(G48=0,G45=0),"No Data",TEXT(G45/G48,"0.00")) -> 2.33
F46: (What was your income less taxes? - IS) | J46: (Inc. after Taxes (S)/LT Debt Pmts (T))
J47: Debt Service Ratio (1/ LTDCR) | L47: =IF(L45="No Data","",TEXT(1/L45,"0.0%")) -> 42.9%
D48: T. | E48: ="Long-term debt payments - "&L6 -> Long-term debt payments - Monthly | G48: 150 | I48: 5. Net Saving's Ratio (%): | L48: =(IF(OR(G39=0,G45=0),"No Data",TEXT(G39/G45,"0.0%"))) -> 5.7%
F49: (Sum of all LT debt payments? - IS) | J49: (Savings (Q)/Inc. after taxes (S))
I50: 6. Gross Savings Ratio (%) | L50: =(IF(OR(G39=0,G51=0),"No Data",TEXT(G39/G51,"0.0%"))) -> 5.7%
D51: U. | E51: ="Gross Income - "&L6 -> Gross Income - Monthly | G51: 350 | J51: (Savings (Q)/Gross Income (U))
F52: (How much did you make this period? - IS)
G53: ="- Page 2 of 3 -" -> - Page 2 of 3 -

Sheet Differences
D2: Differences Between Balance Sheet 2 and Balance Sheet 1 for
D3: ='Balance Sheet 1'!D3:L3&" and "&'Balance Sheet 2'!D3:L3&" for "&'Balance Sheet 1'!Q3 -> January 31, 2019 and February 19, 2019 for Steve and Mary Jo | P3: Name: | Q3: ='Balance Sheet 1'!Q3 -> Steve and Mary Jo
D5: Directions: Fill in the green cells with your data. Be careful not to modify the blue cells. Key inputs | Q5: Frequency of Ratios
D6: for ratios comes from your budget and income statements for the month. | K6: Frequency: | L6: ='Balance Sheet 1'!L6 -> Monthly
D7: Month: | F7: February | G7: Day: | H7: 19 | K7: Year: | L7: 2017
D9: Assets | I9: Liabilities or Debts | AD9: June | AE9: 6
D11: Current or Monetary Assets | I11: Current Liabilities | AD11: July | AE11: 7
E12: Cash, Checking, Saving | G12: ='Balance Sheet 2'!G12-'Balance Sheet 1'!G12 -> -3500 | J12: Unpaid Other Balances | L12: ='Balance Sheet 2'!L12-'Balance Sheet 1'!L12 -> -800 | AD12: August | AE12: 8
E13: Other Monetary Assets | G13: ='Balance Sheet 2'!G13-'Balance Sheet 1'!G13 -> 0 | J13: Unpaid Credit Cards | L13: ='Balance Sheet 2'!L13-'Balance Sheet 1'!L13 -> 0 | AD13: September | AE13: 9
E14: A. | F14: Total Monetary Assets | G14: ='Balance Sheet 2'!G14-'Balance Sheet 1'!G14 -> -3500 | J14: Other Credit Cards | L14: ='Balance Sheet 2'!L14-'Balance Sheet 1'!L14 -> 0 | AD14: October | AE14: 10
D15: Investments & Retirement Plans | J15: I. | K15: Total current liabilities | L15: ='Balance Sheet 2'!L15-'Balance Sheet 1'!L15 -> -800 | AD15: November | AE15: 11
E16: B. Mutual Funds, securities | G16: ='Balance Sheet 2'!G16-'Balance Sheet 1'!G16 -> 0 | I16: Housing Loans | AD16: December | AE16: 12
E17: C. Qual./Ind. Retirement Plans | G17: ='Balance Sheet 2'!G17-'Balance Sheet 1'!G17 -> 0 | J17: Mortgage Outstanding | L17: ='Balance Sheet 2'!L17-'Balance Sheet 1'!L17 -> -100000 | AE17: 13
E18: Total Investments (B+C) | G18: ='Balance Sheet 2'!G18-'Balance Sheet 1'!G18 -> 0 | J18: Other Housing Debt | L18: ='Balance Sheet 2'!L18-'Balance Sheet 1'!L18 -> 0 | AE18: 14
D19: Housing | J19: J. | K19: Total Housing | L19: ='Balance Sheet 2'!L19-'Balance Sheet 1'!L19 -> -100000 | AE19: 15
E20: Primary Residence | G20: ='Balance Sheet 2'!G20-'Balance Sheet 1'!G20 -> -150000 | I20: Vehicle Loans | AE20: 16
E21: Other Housing | G21: ='Balance Sheet 2'!G21-'Balance Sheet 1'!G21 -> 0 | J21: Automobiles | L21: ='Balance Sheet 2'!L21-'Balance Sheet 1'!L21 -> -17700 | AE21: 17
E22: D. | F22: Total Housing (at market value) | G22: ='Balance Sheet 2'!G22-'Balance Sheet 1'!G22 -> -150000 | J22: Other vehicle loans | L22: ='Balance Sheet 2'!L22-'Balance Sheet 1'!L22 -> 0 | AE22: 18
D23: Vehicles | J23: K. | K23: Total Automobile Loans | L23: ='Balance Sheet 2'!L23-'Balance Sheet 1'!L23 -> -17700 | AE23: 19
E24: Automobiles | G24: ='Balance Sheet 2'!G24-'Balance Sheet 1'!G24 -> -12500 | I24: Other Loans | AE24: 20
E25: Other vehicles, ATVs, RVs, etc. | G25: ='Balance Sheet 2'!G25-'Balance Sheet 1'!G25 -> 0 | J25: Students Loans | L25: ='Balance Sheet 2'!L25-'Balance Sheet 1'!L25 -> -2000 | AE25: 21
E26: E. | F26: Total Automobiles | G26: ='Balance Sheet 2'!G26-'Balance Sheet 1'!G26 -> -12500 | J26: Other borrowings | L26: ='Balance Sheet 2'!L26-'Balance Sheet 1'!L26 -> 0 | AE26: 22
D27: Personal Property & Other Assets | J27: L. | K27: Other Loans | L27: ='Balance Sheet 2'!L27-'Balance Sheet 1'!L27 -> -2000 | AE27: 23
E28: Personal Property | G28: ='Balance Sheet 2'!G28-'Balance Sheet 1'!G28 -> -10000 | I28: M. | J28: Total Debt/Liabilities | L28: ='Balance Sheet 2'!L28-'Balance Sheet 1'!L28 -> -120500 | AE28: 24
E29: Other assets | G29: ='Balance Sheet 2'!G29-'Balance Sheet 1'!G29 -> 1000 | AE29: 25
E30: Other miscellaneous assets | G30: ='Balance Sheet 2'!G30-'Balance Sheet 1'!G30 -> 0 | I30: Net Worth | AE30: 26
E31: F. | F31: Personal Property & Other | G31: ='Balance Sheet 2'!G31-'Balance Sheet 1'!G31 -> -9000 | I31: N. | J31: Total Assets | L31: =G33 -> -175000 | AE31: 27
I32: O. | J32: Less: Total Debt | L32: =L28 -> -120500 | AE32: 28
D33: H. | E33: Total Assets (A+B+C+D+E+F) | G33: =G14+G18+G22+G26+G31 -> -175000 | I33: P. | J33: Equals: Net Worth | L33: =L31-L32 -> -54500 | AE33: 29
AE34: 30
F36: =L6&" Financial Ratios for "&Q3 -> Monthly Financial Ratios for Steve and Mary Jo
F37: ="as of "&F7&" "&H7&", "&L7 -> as of February 19, 2017
I38: 6 Key Ratios Differences | AE38: 31
D39: Q. | E39: ="Savings - "&L6 -> Savings - Monthly | G39: ='Balance Sheet 2'!G39-'Balance Sheet 1'!G39 -> -4980 | I39: 1. Current Ratio (%): | L39: =VALUE('Balance Sheet 2'!L39)-VALUE('Balance Sheet 1'!L39) -> -0.06
F40: (How much did you save this period? - IS) | J40: (Mon. Assets (A)/Current Liabilities(I))
I41: 2. Month's Living Exp. Cov. Ratio (x): | L41: =VALUE('Balance Sheet 2'!L41)-VALUE('Balance Sheet 1'!L41) -> 39.84
D42: R. | E42: ="Living Expenses - "&L6 -> Living Expenses - Monthly | G42: ='Balance Sheet 2'!G42-'Balance Sheet 1'!G42 -> -31050 | J42: (Mon. Assets (A)/Monthly Living Exp. (Q))
F43: (What were your living expenses? - IS) | I43: 3. Debt Ratio (%): | L43: =VALUE('Balance Sheet 2'!L43)-VALUE('Balance Sheet 1'!L43) -> 0.356
J44: (Total Liabilities (M)/Total Assets (N))
D45: S. | E45: ="Income less Taxes - "&L6 -> Income less Taxes - Monthly | G45: ='Balance Sheet 2'!G45-'Balance Sheet 1'!G45 -> -42150 | I45: 4. Long-term Debt Coverage Ratio (x): | L45: =VALUE('Balance Sheet 2'!L45)-VALUE('Balance Sheet 1'!L45) -> -0.28
F46: (What was your income less taxes? - IS) | J46: (Inc. after Taxes (S)/LT Debt Pmts (T))
J47: Debt Service Ratio (1/ LTDCR) | L47: =VALUE('Balance Sheet 2'!L47)-VALUE('Balance Sheet 1'!L47) -> 0.046
D48: T. | E48: ="Long-term debt payments - "&L6 -> Long-term debt payments - Monthly | G48: ='Balance Sheet 2'!G48-'Balance Sheet 1'!G48 -> -16150 | I48: 5. Net Saving's Ratio (%): | L48: =VALUE('Balance Sheet 2'!L48)-VALUE('Balance Sheet 1'!L48) -> -0.061
F49: (Sum of all LT debt payments? - IS) | J49: (Savings (Q)/Inc. after taxes (S))
I50: 6. Gross Savings Ratio (%) | L50: =VALUE('Balance Sheet 2'!L50)-VALUE('Balance Sheet 1'!L50) -> -0.043
D51: U. | E51: ="Gross Income - "&L6 -> Gross Income - Monthly | G51: ='Balance Sheet 2'!G51-'Balance Sheet 1'!G51 -> -49650 | J51: (Savings (Q)/Gross Income (U))
F52: (How much did you make this period? - IS)
G53: ="- Page 3 of 3 -" -> - Page 3 of 3 -
